fUSD/lending_fUSD_20240527
["ID","MTS","AMOUNT","RATE_DAILY","PERIOD"]
[328081384,1716839472333,-500.0,0.00030136,6]
[328081385,1716839472343,-14719.25,0.00030136,6]
[328081386,1716839472351,-500.0,0.00030136,6]
[328081387,1716839472361,-500.0,0.00030136,6]
[328081388,1716839472369,-14719.25,0.00030136,6]
[328081389,1716839472378,-500.0,0.00030136,6]
[328081390,1716839472387,-500.0,0.00030136,6]
[328081391,1716839472396,-14719.25,0.00030136,6]
[328081392,1716839472405,-500.0,0.00030136,6]
[328081393,1716839472415,-426.24381031,0.00030136,6]
[328081394,1716839472424,-500.0,0.00030136,6]
[328081395,1716839472433,-500.0,0.00030136,6]
[328081396,1716839472442,-500.0,0.00030136,6]
[328081397,1716839472452,-500.0,0.00030136,6]
[328081398,1716839472461,-500.0,0.00030136,6]
[328081399,1716839472470,-500.0,0.00030136,6]
[328081400,1716839472479,-500.0,0.00030136,6]
[328081401,1716839472489,-500.0,0.00030136,6]
[328081402,1716839472498,-500.0,0.00030136,6]
[328081403,1716839472507,-500.0,0.00030136,6]
[328081404,1716839472516,-500.0,0.00030136,6]
[328081405,1716839472526,-500.0,0.00030136,6]
[328081406,1716839472535,-500.0,0.00030136,6]
[328081407,1716839472544,-636.33055576,0.00030136,6]
[328081408,1716839472560,-500.0,0.00030136,6]
[328081409,1716839472569,-500.0,0.00030136,6]
[328081410,1716839472578,-500.0,0.00030136,6]
[328081411,1716839472587,-500.0,0.00030136,6]
[328081412,1716839472597,-500.0,0.00030136,6]
[328081413,1716839472605,-500.0,0.00030136,6]
[328081414,1716839472614,-500.0,0.00030136,6]
[328081415,1716839472623,-500.0,0.00030136,6]
[328081416,1716839472632,-442.93270513,0.00030136,6]
[328081417,1716839472641,-500.0,0.00030136,6]
[328081418,1716839472651,-500.0,0.00030136,6]
[328081419,1716839472661,-500.0,0.00030136,6]
[328081420,1716839472671,-500.0,0.00030136,6]
[328081421,1716839472681,-500.0,0.00030136,6]
[328081422,1716839472691,-500.0,0.00030136,6]
[328081423,1716839472701,-500.0,0.00030136,6]
[328081424,1716839472710,-500.0,0.00030136,6]
[328081425,1716839472719,-500.0,0.00030136,6]
[328081426,1716839472728,-500.0,0.00030136,6]
[328081427,1716839472738,-500.0,0.00030136,6]
[328081428,1716839472747,-500.0,0.00030136,6]
[328081429,1716839472757,-500.0,0.00030136,6]
[328081430,1716839472767,-500.0,0.00030136,6]
[328081431,1716839472776,-500.0,0.00030136,6]
[328081432,1716839472786,-500.0,0.00030136,6]
[328081433,1716839472796,-500.0,0.00030136,6]
[328081434,1716839472808,-2913.37,0.00030136,6]
[328081435,1716839472818,-500.0,0.00030136,6]
[328081436,1716839472826,-2913.37,0.00030136,6]
[328081437,1716839472836,-500.0,0.00030136,6]
[328081438,1716839472845,-560.41,0.00030136,6]
[328081439,1716839472854,-500.0,0.00030136,6]
[328081440,1716839472864,-2913.37,0.00030136,6]
[328081441,1716839472874,-560.41,0.00030136,6]
[328081442,1716839472884,-500.0,0.00030136,6]
[328081443,1716839472893,-2913.37,0.00030136,6]
[328081444,1716839472903,-500.0,0.00030136,6]
[328081445,1716839472913,-560.41,0.00030136,6]
[328081446,1716839472922,-2913.37,0.00030136,6]
[328081447,1716839472931,-500.0,0.00030136,6]
[328081448,1716839472940,-737.42,0.00030136,6]
[328081449,1716839472950,-560.41,0.00030136,6]
[328081450,1716839472960,-500.0,0.00030136,6]
[328081451,1716839472970,-2913.37,0.00030136,6]
[328081452,1716839472979,-737.42,0.00030136,6]
[328081453,1716839472988,-560.41,0.00030136,6]
[328081454,1716839472998,-2913.37,0.00030136,6]
[328081455,1716839473008,-737.42,0.00030136,6]
[328081456,1716839473018,-560.41,0.00030136,6]
[328081457,1716839473027,-2913.37,0.00030136,6]
[328081458,1716839473036,-737.42,0.00030136,6]
[328081459,1716839473046,-560.41,0.00030136,6]
[328081460,1716839473057,-2913.37,0.00030136,6]
[328081461,1716839473067,-737.42,0.00030136,6]
[328081462,1716839473077,-560.41,0.00030136,6]
[328081463,1716839473087,-737.42,0.00030136,6]
[328081464,1716839473098,-560.41,0.00030136,6]
[328081465,1716839473108,-2913.37,0.00030136,6]
[328081466,1716839473118,-737.42,0.00030136,6]
[328081467,1716839473128,-560.41,0.00030136,6]
[328081468,1716839473138,-2913.37,0.00030136,6]
[328081469,1716839473148,-737.42,0.00030136,6]
[328081470,1716839473158,-560.41,0.00030136,6]
[328081471,1716839473167,-728.95,0.00030136,6]
[328081472,1716839473177,-737.42,0.00030136,6]
[328081473,1716839473186,-728.95,0.00030136,6]
[328081474,1716839473198,-560.41,0.00030136,6]
[328081475,1716839473207,-737.42,0.00030136,6]
[328081476,1716839473220,-728.95,0.00030136,6]
[328081477,1716839473230,-500.0,0.00030136,6]
[328081478,1716839473241,-728.95,0.00030136,6]
[328081479,1716839473250,-500.0,0.00030136,6]
[328081480,1716839473259,-1504.37,0.00030136,6]
[328081481,1716839473268,-728.95,0.00030136,6]
[328081482,1716839473278,-1504.37,0.00030136,6]
[328081483,1716839473288,-728.95,0.00030136,6]
[328081484,1716839473300,-1504.37,0.00030136,6]
[328081485,1716839473309,-728.95,0.00030136,6]
[328081486,1716839473318,-1504.37,0.00030136,6]
[328081487,1716839473327,-728.95,0.00030136,6]
[328081488,1716839473336,-155.25920548,0.00030136,2]
[328081489,1716839473345,-728.95,0.00030136,6]
[328081490,1716839473354,-1504.37,0.00030136,6]
[328081491,1716839473364,-728.95,0.00030136,6]
[328081492,1716839473373,-728.95,0.00030136,6]
[328081493,1716839473383,-1504.37,0.00030136,6]
[328081494,1716839473392,-1504.37,0.00030136,6]
[328081495,1716839473401,-728.95,0.00030136,6]
[328081496,1716839473410,-1504.37,0.00030136,6]
[328081497,1716839473420,-1504.37,0.00030136,6]
[328081498,1716839473429,-1504.37,0.00030136,6]
[328081499,1716839473438,-1504.37,0.00030136,6]
[328081500,1716839473448,-545.36,0.00030136,6]
[328081501,1716839473457,-545.36,0.00030136,6]
[328081502,1716839473468,-545.36,0.00030136,6]
[328081503,1716839473478,-545.36,0.00030136,6]
[328081504,1716839473487,-550.62,0.00030136,6]
[328081505,1716839473496,-545.36,0.00030136,6]
[328081506,1716839473506,-550.62,0.00030136,6]
[328081507,1716839473515,-545.36,0.00030136,6]
[328081508,1716839473524,-550.62,0.00030136,6]
[328081509,1716839473534,-500.0,0.00030136,6]
[328081510,1716839473543,-545.36,0.00030136,6]
[328081511,1716839473560,-550.62,0.00030136,6]
[328081512,1716839473570,-500.0,0.00030136,6]
[328081513,1716839473579,-545.36,0.00030136,6]
[328081514,1716839473589,-550.62,0.00030136,6]
[328081515,1716839473598,-500.0,0.00030136,6]
[328081516,1716839473607,-545.36,0.00030136,6]
[328081517,1716839473616,-550.62,0.00030136,6]
[328081518,1716839473626,-545.36,0.00030136,6]
[328081519,1716839473636,-151.0,0.00030136,2]
[328081520,1716839473646,-871.02,0.00030136,6]
[328081521,1716839473656,-550.62,0.00030136,6]
[328081522,1716839473667,-545.36,0.00030136,6]
[328081523,1716839473676,-871.02,0.00030136,6]
[328081524,1716839473686,-550.62,0.00030136,6]
[328081525,1716839473696,-871.02,0.00030136,6]
[328081526,1716839473706,-871.02,0.00030136,6]
[328081527,1716839473716,-550.62,0.00030136,6]
[328081528,1716839473727,-770.56,0.00030136,6]
[328081529,1716839473737,-871.02,0.00030136,6]
[328081530,1716839473748,-550.62,0.00030136,6]
[328081531,1716839473757,-770.56,0.00030136,6]
[328081532,1716839473768,-871.02,0.00030136,6]
[328081533,1716839473778,-550.62,0.00030136,6]
[328081534,1716839473788,-770.56,0.00030136,6]
[328081535,1716839473803,-871.02,0.00030136,6]
[328081536,1716839473813,-770.56,0.00030136,6]
[328081537,1716839473822,-871.02,0.00030136,6]
[328081538,1716839473832,-770.56,0.00030136,6]
[328081539,1716839473842,-871.02,0.00030136,6]
[328081540,1716839473851,-770.56,0.00030136,6]
[328081541,1716839473861,-871.02,0.00030136,6]
[328081542,1716839473870,-770.56,0.00030136,6]
[328081544,1716839473880,-871.02,0.00030136,6]
[328081545,1716839473889,-770.56,0.00030136,6]
[328081546,1716839473899,-770.56,0.00030136,6]
[328081547,1716839473908,-770.56,0.00030136,6]
[328081548,1716839473918,-500.0,0.00030136,6]
[328081549,1716839473927,-500.0,0.00030136,6]
[328081550,1716839473937,-500.0,0.00030136,6]
[328081551,1716839473946,-500.0,0.00030136,6]
[328081552,1716839473955,-500.0,0.00030136,6]
[328081553,1716839473965,-500.0,0.00030136,6]
[328081554,1716839473975,-500.0,0.00030136,6]
[328081555,1716839473985,-500.0,0.00030136,6]
[328081556,1716839473994,-812.8,0.00030136,6]
[328081557,1716839474004,-812.8,0.00030136,6]
[328081558,1716839474013,-500.0,0.00030136,6]
[328081559,1716839474023,-500.0,0.00030136,6]
[328081560,1716839474032,-812.8,0.00030136,6]
[328081561,1716839474042,-812.8,0.00030136,6]
[328081562,1716839474057,-812.8,0.00030136,6]
[328081563,1716839474066,-500.0,0.00030136,6]
[328081564,1716839474076,-812.8,0.00030136,6]
[328081565,1716839474085,-500.0,0.00030136,6]
[328081566,1716839474095,-812.8,0.00030136,6]
[328081567,1716839474104,-812.8,0.00030136,6]
[328081568,1716839474114,-812.8,0.00030136,6]
[328081569,1716839474123,-821.93,0.00030136,6]
[328081570,1716839474132,-713.41,0.00030136,6]
[328081571,1716839474143,-812.8,0.00030136,6]
[328081572,1716839474153,-821.93,0.00030136,6]
[328081573,1716839474162,-713.41,0.00030136,6]
[328081574,1716839474172,-812.8,0.00030136,6]
[328081575,1716839474181,-821.93,0.00030136,6]
[328081576,1716839474191,-821.93,0.00030136,6]
[328081577,1716839474205,-713.41,0.00030136,6]
[328081578,1716839474214,-821.93,0.00030136,6]
[328081579,1716839474223,-713.41,0.00030136,6]
[328081580,1716839474232,-821.93,0.00030136,6]
[328081581,1716839474242,-713.41,0.00030136,6]
[328081582,1716839474252,-821.93,0.00030136,6]
[328081583,1716839474261,-713.41,0.00030136,6]
[328081584,1716839474270,-821.93,0.00030136,6]
[328081585,1716839474282,-5405.49,0.00030136,6]
[328081586,1716839474292,-713.41,0.00030136,6]
[328081587,1716839474306,-821.93,0.00030136,6]
[328081588,1716839474315,-5405.49,0.00030136,6]
[328081589,1716839474324,-713.41,0.00030136,6]
[328081590,1716839474334,-821.93,0.00030136,6]
[328081591,1716839474343,-5405.49,0.00030136,6]
[328081592,1716839474353,-713.41,0.00030136,6]
[328081593,1716839474362,-5405.49,0.00030136,6]
[328081594,1716839474372,-821.93,0.00030136,6]
[328081595,1716839474383,-713.41,0.00030136,6]
[328081596,1716839474392,-5405.49,0.00030136,6]
[328081597,1716839474402,-821.93,0.00030136,6]
[328081598,1716839474411,-713.41,0.00030136,6]
[328081599,1716839474421,-5405.49,0.00030136,6]
[328081600,1716839474431,-5405.49,0.00030136,6]
[328081601,1716839474440,-5405.49,0.00030136,6]
[328081602,1716839474450,-500.0,0.00030136,6]
[328081603,1716839474459,-5405.49,0.00030136,6]
[328081604,1716839474469,-1131.45,0.00030136,6]
[328081605,1716839474478,-5405.49,0.00030136,6]
[328081606,1716839474488,-1131.45,0.00030136,6]
[328081607,1716839474497,-5405.49,0.00030136,6]
[328081608,1716839474506,-1131.45,0.00030136,6]
[328081609,1716839474516,-5405.49,0.00030136,6]
[328081610,1716839474525,-1131.45,0.00030136,6]
[328081611,1716839474535,-1131.45,0.00030136,6]
[328081612,1716839474544,-1131.45,0.00030136,6]
[328081613,1716839474560,-500.0,0.00030136,6]
[328081614,1716839474569,-1131.45,0.00030136,6]
[328081615,1716839474579,-500.0,0.00030136,6]
[328081616,1716839474589,-500.0,0.00030136,6]
[328081617,1716839474599,-1131.45,0.00030136,6]
[328081618,1716839474610,-500.0,0.00030136,6]
[328081619,1716839474620,-500.0,0.00030136,6]
[328081620,1716839474630,-500.0,0.00030136,6]
[328081621,1716839474640,-500.0,0.00030136,6]
[328081622,1716839474650,-1131.45,0.00030136,6]
[328081623,1716839474661,-500.0,0.00030136,6]
[328081624,1716839474671,-500.0,0.00030136,6]
[328081625,1716839474682,-500.0,0.00030136,6]
[328081626,1716839474692,-1131.45,0.00030136,6]
[328081627,1716839474702,-500.0,0.00030136,6]
[328081628,1716839474712,-500.0,0.00030136,6]
[328081629,1716839474722,-500.0,0.00030136,6]
[328081630,1716839474732,-500.0,0.00030136,6]
[328081631,1716839474742,-500.0,0.00030136,6]
[328081632,1716839474752,-500.0,0.00030136,6]
[328081633,1716839474762,-500.0,0.00030136,6]
[328081634,1716839474773,-434.59517891,0.00030136,6]
[328081635,1716839474784,-500.0,0.00030136,6]
[328081636,1716839474796,-575.88,0.00030136,6]
[328081637,1716839474813,-500.0,0.00030136,6]
[328081638,1716839474823,-508.75424554,0.00030136,6]
[328081639,1716839474835,-500.0,0.00030136,6]
[328081640,1716839474847,-500.0,0.00030136,6]
[328081641,1716839474858,-500.0,0.00030136,6]
[328081642,1716839474868,-500.0,0.00030136,6]
[328081643,1716839474879,-151.0,0.00030136,7]
[328081644,1716839474889,-151.0,0.00030136,7]
[328081645,1716839474899,-151.0,0.00030136,7]
[328081646,1716839474909,-151.0,0.00030136,7]
[328081647,1716839474919,-151.0,0.00030136,7]
[328081648,1716839474930,-151.0,0.00030136,7]
[328081649,1716839474940,-151.0,0.00030136,7]
[328081650,1716839474950,-151.0,0.00030136,7]
[328081651,1716839474959,-151.0,0.00030136,7]
[328081652,1716839474969,-151.0,0.00030136,7]
[328081653,1716839474980,-151.0,0.00030137,7]
[328081654,1716839474990,-447.9385164,0.00030139,2]
[328081655,1716839475000,-500.0,0.00030139,2]
[328081656,1716839475011,-490.5156049,0.00030139,2]
[328081657,1716839475021,-311.62064007,0.00030139,2]
[328081658,1716839475031,-444.17284476,0.00030139,2]
[328081659,1716839475042,-251.0,0.0003015,2]
[328081660,1716839475056,-207.0,0.0003015,2]
[328081661,1716839475066,-208.0,0.0003015,2]
[328081662,1716839475076,-153.17633344,0.00030186,7]
[328081664,1716839475086,-216.69,0.00030187,2]
[328081665,1716839475095,-150.0,0.00030202,2]
[328081666,1716839475105,-163.69,0.00030202,2]
[328081667,1716839475114,-421.33,0.00030202,2]
[328081668,1716839475123,-416.13,0.00030202,2]
[328081669,1716839475133,-404.82,0.00030202,2]
[328081670,1716839475143,-161.44222684,0.00030223,7]
[328081671,1716839475154,-9445.3285785,0.00030331,2]
[328081672,1716839475164,-196.0,0.00030355,5]
[328081673,1716839475174,-351.04,0.00030372,2]
[328081674,1716839475184,-47161.54086042,0.00030388,10]
[328081675,1716839475194,-2000.0,0.00030437,2]
[328081676,1716839475207,-200.0,0.00030437,2]
[328081677,1716839475216,-2000.0,0.00030437,2]
[328081678,1716839475226,-200.0,0.00030437,2]
[328081679,1716839475235,-2000.0,0.00030437,2]
[328081680,1716839475246,-200.0,0.00030437,2]
[328081681,1716839475256,-170.6841614,0.00030483,2]
[328081682,1716839475265,-500.0,0.00030491,6]
[328081683,1716839475275,-500.0,0.00030491,6]
[328081685,1716839475286,-571.62,0.00030491,6]
[328081686,1716839475296,-500.0,0.00030491,6]
[328081687,1716839475311,-500.0,0.00030491,6]
[328081688,1716839475320,-500.0,0.00030491,6]
[328081689,1716839475329,-500.0,0.00030491,6]
[328081690,1716839475339,-500.0,0.00030491,6]
[328081691,1716839475348,-500.0,0.00030491,6]
[328081692,1716839475357,-500.0,0.00030491,6]
[328081693,1716839475367,-500.0,0.00030491,6]
[328081694,1716839475377,-500.0,0.00030491,6]
[328081696,1716839475387,-500.0,0.00030491,6]
[328081697,1716839475397,-533.36,0.00030491,6]
[328081698,1716839475407,-500.0,0.00030491,6]
[328081699,1716839475417,-500.0,0.00030491,6]
[328081700,1716839475427,-500.0,0.00030491,6]
[328081701,1716839475436,-500.0,0.00030491,6]
[328081702,1716839475446,-645.79,0.00030491,6]
[328081703,1716839475457,-513.74,0.00030491,6]
[328081704,1716839475466,-516.51,0.00030491,6]
[328081705,1716839475476,-500.0,0.00030491,6]
[328081706,1716839475485,-500.0,0.00030491,6]
[328081707,1716839475495,-494.85,0.00030491,6]
[328081708,1716839475505,-552.09,0.00030491,6]
[328081709,1716839475515,-500.0,0.00030491,6]
[328081710,1716839475524,-500.0,0.00030491,6]
[328081711,1716839475533,-520.36,0.00030491,6]
[328081712,1716839475543,-500.0,0.00030491,6]
[328081713,1716839475557,-500.0,0.00030491,6]
[328081714,1716839475566,-500.0,0.00030491,6]
[328081715,1716839475576,-500.0,0.00030491,6]
[328081716,1716839475586,-500.0,0.00030491,6]
[328081717,1716839475596,-500.0,0.00030491,6]
[328081718,1716839475605,-500.0,0.00030491,6]
[328081719,1716839475615,-500.0,0.00030491,6]
[328081720,1716839475625,-695.12,0.00030491,6]
[328081721,1716839475636,-500.0,0.00030491,6]
[328081722,1716839475646,-724.09,0.00030491,6]
[328081723,1716839475655,-500.0,0.00030491,6]
[328081724,1716839475665,-510.29,0.00030491,6]
[328081725,1716839475675,-500.0,0.00030491,6]
[328081726,1716839475685,-917.67,0.00030491,6]
[328081727,1716839475696,-1454.5,0.00030491,6]
[328081728,1716839475707,-500.0,0.00030491,6]
[328081729,1716839475717,-882.73,0.00030491,6]
[328081730,1716839475727,-500.0,0.00030491,6]
[328081731,1716839475738,-500.0,0.00030491,6]
[328081732,1716839475750,-500.0,0.00030491,6]
[328081733,1716839475760,-1504.37,0.00030491,6]
[328081734,1716839475771,-500.0,0.00030491,6]
[328081735,1716839475781,-1500.0,0.000305,5]
[328081736,1716839475792,-200.0,0.00030529,2]
[328081737,1716839475808,-2094.41,0.00030623,6]
[328081738,1716839475819,-500.0,0.00030623,6]
[328081739,1716839475829,-517.4,0.00030623,6]
[328081740,1716839475839,-500.0,0.00030623,6]
[328081741,1716839475850,-830.03,0.00030623,6]
[328081742,1716839475860,-500.0,0.00030623,6]
[328081743,1716839475870,-500.0,0.00030623,6]
[328081744,1716839475881,-1731.26,0.00030623,6]
[328081745,1716839475892,-815.65,0.00030623,6]
[328081746,1716839475902,-14719.25,0.00030623,6]
[328081747,1716839475913,-560.41,0.00030623,6]
[328081748,1716839475923,-1335.89,0.00030624,6]
[328081749,1716839475935,-2954.58,0.00030624,6]
[328081750,1716839475945,-8255.8,0.00030624,6]
[328081751,1716839475955,-786.06,0.00030624,6]
[328081752,1716839475966,-1475.13,0.00030624,6]
[328081753,1716839475977,-11425.18,0.00030624,6]
[328081754,1716839475988,-903.28,0.00030624,6]
[328081755,1716839476192,-500.0,0.00030625,6]
[328081756,1716839476204,-678.42,0.00030625,6]
[328081757,1716839476213,-500.0,0.00030625,6]
[328081758,1716839476227,-500.0,0.00030625,6]
[328081759,1716839476237,-500.0,0.00030625,6]
[328081760,1716839476248,-12343.41,0.00030625,6]
[328081761,1716839476259,-500.0,0.00030625,6]
[328081762,1716839476269,-500.0,0.00030625,6]
[328081763,1716839476279,-500.0,0.00030625,6]
[328081764,1716839476289,-500.0,0.00030625,6]
[328081765,1716839476309,-1334.09,0.00030625,6]
[328081766,1716839476320,-1123.44,0.00030625,6]
[328081767,1716839476330,-1001.38,0.00030625,6]
[328081768,1716839476340,-733.2,0.00030625,6]
[328081769,1716839476350,-721.19,0.00030625,6]
[328081770,1716839476360,-1006.25,0.00030625,6]
[328081771,1716839476370,-500.0,0.00030625,6]
[328081772,1716839476380,-1655.75,0.00030625,6]
[328081773,1716839476391,-1076.07,0.00030625,6]
[328081774,1716839476401,-735.27,0.00030625,6]
[328081775,1716839476411,-2232.04,0.00030625,6]
[328081776,1716839476421,-1124.77,0.00030625,6]
[328081777,1716839476431,-608.37,0.00030625,6]
[328081778,1716839476440,-500.0,0.00030625,6]
[328081779,1716839476450,-699.51,0.00030625,6]
[328081780,1716839476459,-597.81,0.00030625,6]
[328081781,1716839476469,-500.0,0.00030625,6]
[328081782,1716839476479,-1092.34,0.00030625,6]
[328081783,1716839476489,-1013.2,0.00030625,6]
[328081784,1716839476499,-500.0,0.00030625,6]
[328081785,1716839476508,-536.51,0.00030625,6]
[328081786,1716839476518,-500.0,0.00030625,6]
[328081787,1716839476527,-500.0,0.00030625,6]
[328081788,1716839476536,-646.45298957,0.00030625,6]
[328081789,1716839476546,-2913.37,0.00030625,6]
[328081790,1716839476560,-545.36,0.00030625,6]
[328081791,1716839476570,-871.02,0.00030625,6]
[328081792,1716839476580,-812.8,0.00030625,6]
[328081793,1716839476590,-713.41,0.00030625,6]
[328081794,1716839476600,-9445.3285785,0.00030626,2]
[328081795,1716839476609,-251.0,0.0003069,2]
[328081796,1716839476619,-207.0,0.0003069,2]
[328081797,1716839476629,-208.0,0.0003069,2]
[328081798,1716839476638,-873.78,0.00030697,2]
[328081799,1716839476648,-411.05,0.00030712,2]
[328081800,1716839476657,-2000.0,0.00030742,2]
[328081801,1716839476666,-200.0,0.00030742,2]
[328081802,1716839476676,-2000.0,0.00030742,2]
[328081803,1716839476685,-200.0,0.00030742,2]
[328081804,1716839476695,-1661.24906514,0.00030742,2]
[328081805,1716839476704,-200.0,0.00030742,2]
[328081806,1716839476713,-150.0,0.00030767,2]
[328081807,1716839476723,-500.0,0.00030842,10]
[328081808,1716839476733,-270.18041116,0.00030848,2]
[328081809,1716839476742,-300.0,0.00030853,2]
[328081810,1716839476752,-300.0,0.00030856,2]
[328081811,1716839476761,-150.0,0.0003086,2]
[328081812,1716839476771,-47161.54086042,0.00030871,10]
[328081813,1716839476781,-300.0,0.00030885,2]
[328081814,1716839476790,-516.33,0.00030889,6]
[328081815,1716839476802,-500.0,0.00030889,6]
[328081816,1716839476811,-378.03,0.00030889,6]
[328081817,1716839476820,-500.0,0.00030889,6]
[328081818,1716839476829,-500.0,0.00030889,6]
[328081819,1716839476839,-6331.69,0.00030889,6]
[328081820,1716839476847,-383.53,0.00030889,6]
[328081821,1716839476857,-289.0,0.00030889,6]
[328081822,1716839476867,-500.0,0.00030889,6]
[328081823,1716839476877,-689.58,0.00030889,6]
[328081824,1716839476887,-5653.83,0.00030889,6]
[328081825,1716839476898,-590.24,0.00030889,6]
[328081826,1716839476908,-240.88092317,0.00030889,6]
[328081827,1716839476917,-951.79,0.00030889,6]
[328081828,1716839476927,-968.5,0.00030889,6]
[328081829,1716839476936,-650.56,0.00030889,6]
[328081830,1716839476946,-500.0,0.00030889,6]
[328081831,1716839476956,-2492.66,0.00030889,6]
[328081832,1716839476965,-1537.48,0.00030889,6]
[328081833,1716839476974,-940.03,0.00030889,6]
[328081834,1716839476984,-1309.89,0.00030889,6]
[328081835,1716839476994,-871.41,0.00030889,6]
[328081836,1716839477003,-2043.0,0.00030889,6]
[328081837,1716839477012,-1224.97,0.00030889,6]
[328081838,1716839477021,-500.0,0.00030889,6]
[328081839,1716839477030,-1728.84,0.00030889,6]
[328081840,1716839477040,-907.48,0.00030889,6]
[328081841,1716839477051,-500.0,0.00030889,6]
[328081842,1716839477061,-1347.58,0.00030889,6]
[328081843,1716839477071,-500.0,0.00030889,6]
[328081844,1716839477080,-857.47,0.00030889,6]
[328081845,1716839477089,-762.55,0.00030889,6]
[328081846,1716839477100,-1394.11,0.00030889,6]
[328081847,1716839477109,-500.0,0.00030889,6]
[328081848,1716839477119,-837.83,0.00030889,6]
[328081849,1716839477129,-500.0,0.00030889,6]
[328081850,1716839477138,-3588.96,0.00030889,6]
[328081851,1716839477147,-500.0,0.00030889,6]
[328081852,1716839477157,-528.65,0.00030889,6]
[328081853,1716839477167,-573.13,0.00030889,6]
[328081854,1716839477176,-500.0,0.00030889,6]
[328081855,1716839477187,-307.71,0.00030889,6]
[328081856,1716839477201,-607.05,0.00030889,6]
[328081857,1716839477212,-500.0,0.00030889,6]
[328081858,1716839477222,-903.95,0.00030889,6]
[328081859,1716839477231,-1055.28,0.00030889,6]
[328081860,1716839477242,-500.0,0.00030889,6]
[328081861,1716839477252,-2925.03,0.00030889,6]
[328081862,1716839477261,-1185.86,0.00030889,6]
[328081863,1716839477271,-500.0,0.00030889,6]
[328081864,1716839477280,-500.0,0.00030889,6]
[328081865,1716839477290,-737.42,0.00030889,6]
[328081866,1716839477304,-728.95,0.00030889,6]
[328081867,1716839477314,-550.62,0.00030889,6]
[328081868,1716839477323,-770.56,0.00030889,6]
[328081869,1716839477332,-414.76980811,0.00030889,6]
[328081870,1716839477342,-821.93,0.00030889,6]
[328081871,1716839477351,-5405.49,0.00030889,6]
[328081872,1716839477360,-1131.45,0.00030889,6]
[328081873,1716839477369,-1539.8,0.00030891,6]
[328081874,1716839477379,-500.0,0.00030891,6]
[328081875,1716839477388,-169.33,0.00030891,6]
[328081876,1716839477397,-529.2,0.00030891,6]
[328081877,1716839477407,-1174.08,0.00030891,6]
[328081878,1716839477417,-2094.41,0.00030891,6]
[328081879,1716839477425,-500.0,0.00030891,6]
[328081880,1716839477434,-517.4,0.00030891,6]
[328081881,1716839477444,-500.0,0.00030891,6]
[328081882,1716839477453,-830.03,0.00030891,6]
[328081883,1716839477463,-500.0,0.00030891,6]
[328081884,1716839477473,-500.0,0.00030891,6]
[328081885,1716839477482,-1731.26,0.00030891,6]
[328081886,1716839477491,-815.65,0.00030891,6]
[328081887,1716839477501,-14719.25,0.00030891,6]